Cogmind - Beta 9.6 @@@ ROGUE MODE // 2020.08.18 @ 08:39:59 Player: Exp. Geonium Core Result: Destroyed by S-10 Pest with Light Assault Rifle Performance ------------- Evolutions (1) 500 Regions Visited (2) 400 Robots Destroyed (21) 105 Value Destroyed (434) 434 Prototype IDs (0) 0 Alien Tech Used (0) 0 Bonus (0) 0 TOTAL SCORE: 1439 Bonus ------- None Cogmind --------- Core Integrity 0/400 Matter 276/300 Energy 265/265 System Corruption 1% Temperature Cool (0) Movement Core (750) Ox14 Location -9/Materials Parts ------- > --- POWER (1) -------- Improved Ion Engine > --- PROPULSION (2) --- (None) > --- UTILITY (4) ------ Large Storage Unit Large Storage Unit > --- WEAPON (2) ------- Light Assault Rifle Heavy Assault Rifle > --- INVENTORY (16) --- Medium Storage Unit Beam Rifle Beam Rifle Light Assault Rifle Grenade Launcher Hammer Peak State ------------ > --- POWER ------------ Improved Ion Engine > --- PROPULSION ------- Wheel Wheel > --- UTILITY ---------- Large Storage Unit Large Storage Unit > --- WEAPON ----------- Heavy Assault Rifle Hammer > --- INVENTORY -------- Medium Storage Unit Light Assault Rifle Grenade Launcher [Rating: 9] Favorites ----------- Power Improved Ion Engine Engine Improved Ion Engine Propulsion Wheel Wheel Wheel Utility Large Storage Unit Device Heat Sink Storage Large Storage Unit Weapon Hammer Energy Gun Small Laser Ballistic Gun Heavy Assault Rifle Ballistic Cannon Light Cannon Launcher Grenade Launcher Impact Weapon Hammer Build | -11 -10 -9 ------- Run | Scr Mat Mat Slots Evolved 2 | . . 2 Power . | . . . Propulsion . | . . . Utility 2 | . . 2 Weapon . | . . . Parts Attached 20 | 6 3 11 Power 3 | 1 . 2 Engine 3 | 1 . 2 Core . | . . . Reactor . | . . . Propulsion 4 | 2 . 2 Treads . | . . . Leg . | . . . Wheel 4 | 2 . 2 Hover . | . . . Flight . | . . . Utility 4 | 1 2 1 Device 1 | . 1 . Storage 3 | 1 1 1 Processor . | . . . Hackware . | . . . Protection . | . . . Artifact . | . . . Weapon 9 | 2 1 6 Energy Gun 3 | 2 . 1 Energy Cannon . | . . . Ballistic Gun 3 | . . 3 Ballistic Cannon 1 | . 1 . Launcher 1 | . . 1 Special Weapon . | . . . Impact Weapon 1 | . . 1 Slashing Weapon . | . . . Piercing Weapon . | . . . Special Melee Weapon . | . . . Unidentified Prototypes . | . . . Parts Lost 11 | . 4 7 Power 1 | . . 1 Propulsion 4 | . 1 3 Utility 1 | . 1 . Weapon 5 | . 2 3 Highest Loss Streak 5 | . 4 5 Average Slot Usage (%) 64 | . 80 58 Engine 10 | . 14 8 Wheel 12 | . 24 8 Device 1 | . 5 . Storage 19 | . 12 22 Energy Gun 5 | . 19 . Ballistic Gun 6 | . . 9 Ballistic Cannon 1 | . 3 1 Impact Weapon 6 | . . 8 Naked Turns . | . . . Heaviest Build 44 | 9 23 44 Greatest Support 26 | 26 26 20 Greatest Overweight (x) 14 | . 1 14 Average Overweight (x) 2 | . . 4 Largest Inventory Capacity 16 | 6 10 16 Average Capacity 13 | 4 7 15 Most Carried 6 | 2 6 6 Average Carried 3 | 1 4 2 Final Capacity 16 | 6 10 16 Final Carried 6 | 2 5 6 Class Distribution -------------------- 61% | Mutant 38% | Scavenger-Mutant Dominant Class ---------------- Mutant | -10/Materials Scavenger-Mutant | -9/Materials Resources | -11 -10 -9 ----------- Run | Scr Mat Mat Matter Collected 599 | 233 87 279 Remotely . | . . . Salvage Created 582 | . 179 403 Parts 39 | . 7 32 Haulers Intercepted . | . . . Recyclers Shooed 3 | . 1 2 Parts Field Recycled . | . . . Retrieved Matter . | . . . Parts Self-Destructed . | . . . Prevented . | . . . Kills | -11 -10 -9 ------- Run | Scr Mat Mat Combat Hostiles Destroyed 16 | . 7 9 Melee 1 | . . 1 Guns 12 | . 5 7 Cannons 3 | . 2 1 Classes Destroyed 5 | . 2 3 Worker 3 | . . 3 Builder 2 | . . 2 Swarmer 7 | . 3 4 Grunt 7 | . 4 3 Sentry 2 | . . 2 Best Kill Streak 5 | . 5 5 Combat Bots Only 5 | . 5 2 Max Kills in Single Turn 1 | . 1 1 Gunslinging . | . . . Exploded . | . . . Melee 1 | . . 1 Uniques/NPCs Destroyed . | . . . Combat | -11 -10 -9 -------- Run | Scr Mat Mat Damage Taken 1525 | . 354 1171 Core 499 | . 99 400 Absorbed by Shields . | . . . Core Remaining (%) 80 | 100 60 . Volleys Fired 118 | . 36 82 Largest 2 | . 2 2 Hottest 80 | . 80 55 Shots Fired 144 | . 52 92 Gun 125 | . 42 83 Cannon 19 | . 10 9 Launcher . | . . . Special . | . . . Kinetic 97 | . 10 87 Thermal 47 | . 42 5 Explosive . | . . . Electromagnetic . | . . . Robot Hit Streak 15 | . 6 15 Robot Miss Streak 3 | . 2 3 Penetration Max . | . . . Secondary Targets . | . . . Shots Hit Robots 90 | . 29 61 Core Hits 32 | . 11 21 Critical Hits 1 | . . 1 Critical Kills . | . . . Critical Parts Destroyed 1 | . . 1 Melee Attacks 20 | . . 20 Impact 20 | . . 20 Slashing . | . . . Piercing . | . . . Sneak Attacks . | . . . Combat Hostiles . | . . . Follow-up Attacks . | . . . Damage Inflicted 1216 | . 381 835 Guns 907 | . 233 674 Cannons 262 | . 146 116 Explosions . | . . . Melee 45 | . . 45 Ramming 2 | . 2 . Kinetic 883 | . 146 737 Thermal 286 | . 233 53 Explosive . | . . . Electromagnetic . | . . . Impact 45 | . . 45 Slashing . | . . . Piercing . | . . . Highest Corruption 2 | . 2 1 Average Corruption 1 | . 2 1 Corruption Purged . | . . . Effects 3 | . 2 1 Message Errors 1 | . . 1 Targeting Errors 2 | . 2 . Overload Shots . | . . . Overflow Damage . | . . . Projectiles . | . . . Explosions . | . . . Melee . | . . . Knockbacks 5 | . 4 1 Impact . | . . . Kinetic 3 | . 2 1 Secondary 2 | . 2 . Self-Inflicted Damage 1 | . 1 . Shots . | . . . Rammed 1 | . 1 . Targets Rammed 1 | . 1 . Kicked . | . . . Crushed . | . . . Highest Temperature 302 | . 302 28 Average Temperature 110 | . 154 8 Received Heat Transfer 438 | . 162 276 Siege Activations . | . . . Robots Corrupted . | . . . Combat Hostiles . | . . . Parts Fried . | . . . Impact Corruptions . | . . . Robots Melted . | . . . Combat Hostiles . | . . . Parts Melted 2 | . 2 . Heat Transferred 650 | . 525 125 Parts Sabotaged . | . . . Parts Stolen . | . . . Parts Stripped . | . . . Power Chain Reactions . | . . . Missiles Intercepted . | . . . Alert | -11 -10 -9 ------- Run | Scr Mat Mat Peak Influence 216 | . 185 216 Average Influence 100 | . 77 115 Maximum Alert Level 1 | . . 1 Low Security (%) 97 | 100 100 97 Level 1 2 | . . 2 Level 2 . | . . . Level 3 . | . . . Level 4 . | . . . Level 5 . | . . . High Security . | . . . Max Security . | . . . Squads Dispatched 3 | . 2 1 Investigation 1 | . . 1 Extermination . | . . . Reinforcement 2 | . 2 . Assault . | . . . Garrison . | . . . Intercept . | . . . Construction Impeded . | . . . Haulers Reinforced . | . . . Stealth | -11 -10 -9 --------- Run | Scr Mat Mat Distress Signals 2 | . 1 1 Communications Jammed . | . . . Distress Signals . | . . . Times Spotted 27 | . 11 16 Peak Tracking Total 4 | . 4 4 Tactical Retreats 3 | . 1 2 Traps | -11 -10 -9 ------- Run | Scr Mat Mat Traps Triggered 1 | . 1 . Indirectly . | . . . Trap Hack Attempts . | . . . Triggered . | . . . Disarmed . | . . . Reprogrammed . | . . . Reused . | . . . Traps Extracted . | . . . Installed . | . . . Triggered . | . . . Machines | -11 -10 -9 ---------- Run | Scr Mat Mat Machines Disabled 1 | . . 1 Max in Single Turn 1 | . . 1 Machines Sabotaged . | . . . Garrisons Compromised . | . . . Overloaded Fab Kills . | . . . Fab Network Shutdowns . | . . . Hacking | -11 -10 -9 --------- Run | Scr Mat Mat Machines Accessed 5 | . 2 3 Terminals 5 | . 2 3 Fabricators . | . . . Repair Stations . | . . . Recycling Units . | . . . Scanalyzers . | . . . Garrison Access . | . . . Total Hacks 16 | . 6 10 Successful 8 | . 3 5 Failed 8 | . 3 5 Catastrophic . | . . . Database Lockouts . | . . . Manual 16 | . 6 10 Terminals 16 | . 6 10 Fabricators . | . . . Repair Stations . | . . . Recycling Units . | . . . Scanalyzers . | . . . Garrison Access . | . . . Terminal Hacks 3 | . 2 1 Part Schematic 1 | . 1 . Level Access Points 2 | . 1 1 Fabricator Hacks . | . . . Repair Station Hacks . | . . . Recycling Unit Hacks . | . . . Scanalyzer . | . . . Garrison Access Hacks . | . . . Unauthorized Hacks 5 | . 1 4 Terminals 5 | . 1 4 Botnet 4 | . 1 3 Operators 1 | . . 1 Fabricators . | . . . Repair Stations . | . . . Recycling Units . | . . . Scanalyzers . | . . . Garrison Access . | . . . Data Cores Recovered . | . . . Used . | . . . Hacking Detections 5 | . 2 3 Full Trace Events 1 | . . 1 Feedback Events 1 | . . 1 Corruption 1 | . . 1 Feedback Blocked . | . . . Robot Schematics Acquired . | . . . Robots Built . | . . . Matter . | . . . Time . | . . . Total Robot Build Rating . | . . . Part Schematics Acquired 1 | . 1 . Parts Built . | . . . Matter . | . . . Time . | . . . Total Part Build Rating . | . . . Parts Repaired . | . . . Time . | . . . Parts Recycled . | . . . Recycled Matter . | . . . Retrieved Matter . | . . . Retrieved Components . | . . . Parts Scanalyzed . | . . . Part Schematics Acquired . | . . . Parts Damaged . | . . . Bothacking | -11 -10 -9 ------------ Run | Scr Mat Mat Used RIF Installer . | . . . Robots Hacked . | . . . Non-combat . | . . . Combat . | . . . Robot Hacks Applied . | . . . Relay Couplers Released . | . . . Robots Rewired . | . . . Allies Hacked . | . . . Hacks Repelled . | . . . Allies | -11 -10 -9 -------- Run | Scr Mat Mat Total Allies . | . . . Largest Group . | . . . Highest-Rated Group . | . . . Highest-Rated Ally . | . . . Total Orders . | . . . Ally Attacks . | . . . Total Damage . | . . . Kills . | . . . Allies Corrupted . | . . . Allies Melted . | . . . Intel | -11 -10 -9 ------- Run | Scr Mat Mat Robot Analysis Total . | . . . Derelict Logs Recovered . | . . . Drone Launches . | . . . Drone Recoveries . | . . . Exploration | -11 -10 -9 ------------- Run | Scr Mat Mat Turns Passed 845 | 39 225 581 Spaces Moved 325 | 33 113 179 Core 23 | 2 . 21 Treads . | . . . Legs . | . . . Wheels 302 | 31 113 158 Hover . | . . . Flight . | . . . Fastest Speed 50 | 50 90 100 Average Speed 141 | 85 94 181 Slowest Speed 750 | 90 110 750 Overloaded Moves . | . . . Propulsion Burnouts . | . . . Robots Hopped . | . . . Cave-ins Triggered . | . . . Exploration Rate (%) 20 | 3 32 25 Regions Visited 2 Branch Regions . Pre-discovered Areas . | . . . Known Exits Taken 1 | . 1 . Unknown Exits Taken 1 | 1 . . Scrap Searched . | . . . Spaces Dug 3 | . . 3 Terrain Destroyed 3 | . . 3 Melee 3 | . . 3 Projectile . | . . . AOE . | . . . Actions | -11 -10 -9 --------- Run | Scr Mat Mat Total 533 | 40 178 315 Wait 37 | . 21 16 Move 323 | 32 112 179 Hop . | . . . Pick Up 11 | 2 4 5 Fast Attach 13 | 6 2 5 Attach 5 | . 1 4 Detach 1 | . . 1 Swap 2 | . . 2 Drop 2 | . 1 1 Fire 118 | . 36 82 Melee 20 | . . 20 Ram 1 | . 1 . Kick . | . . . Crush . | . . . Escape Stasis . | . . . Rewire . | . . . Trap . | . . . Miscellaneous . | . . . Route ------- -11/Scrapyard -10/Materials (discovered 4 exits: *Mat x3 / [*Min]) -9/Materials (discovered 3 exits: Mat x3) History --------- Turn | Location | Event 9 | -11/Scrapyard | Discovered new exit (range 16) 40 | -11/Scrapyard | Entered Materials 90 | -10/Materials | Identified exit to Materials 170 | -10/Materials | Discovered new exit (range 14) 265 | -10/Materials | Entered another Materials area 265 | -9/Materials | Evolved 2 slots: Utility x2 267 | -9/Materials | Lost 4 parts (1n1u2w) 273 | -9/Materials | Identified exit to Materials 309 | -9/Materials | Build established: Mutant 363 | -9/Materials | Core integrity fell below 50% 396 | -9/Materials | Lost 5 parts (1p1n3w) 403 | -9/Materials | Core integrity fell below 20% 817 | -9/Materials | Build established: Scavenger-Mutant 846 | -9/Materials | Destroyed by S-10 Pest with Light Assault Rifle Last Messages --------------- 00698_ Extracted 41 matter. 00705_ Material Compactor disabled. 00711_ G-34 Mercenary destroyed. 00722_ U-05 Engineer builds a Wall. 00748_ Connecting with Terminal... >>Trojan(Botnet) Trojan loaded successfully. Testing... Terminal linked with 2 systems. Awaiting botnet instructions. Feedback: System corruption (+1%). 00748_ ALERT: Suspicious activity at Terminal M010. Dispatching Investigation squad. 00775_ Acquired Beam Rifle. 00798_ XKQ N6XSG A,OJ& 6ORFK 00824_ U-05 Engineer builds a Wall. 00835_ Connecting with Terminal... 00843_ Wheel destroyed. 00844_ S-10 Pest destroyed. 00846_ O-16 Technician: "IFF HANDSHAKE FAILED. SECURING TERMINAL." Map ----- +----------------------------------------------------+ | # """ # ########?? ???????????? | | # # +?? ! #?# #??????????? | | # """ + #? % #?# #??????????? | | # """ # #? #?# #??????????? | | # """ # # !!! #?# #??????????? | | # ?# # !!! #?# #??????????? | | # " "?+ + !! #?# #??????????? | | # "R??###+########?#####+#####??????????? | | # ""???# #????????????????????????????? | | ###????# #????????????????????????????? | | ???????# #????????????????????????????? | | ???????# #????????????????????????????? | | ???????# !#????????????????????????????? | | ???????# #????????????????????????????? | | ???????# ##???????????????????????????? | | ???????#######??????????????????????????? | | ??????????## ##?????????????????????????? | | ???????????##;##########????????????????? | | ????????????# """ +?????????????????? | | ????????????# """ "T" #?????????????????? | | ????????????# """ #?????????????????? | | ????????????# """ #?????????????????? | | ????????????# | #?????????????????? | | ????????????# #?????????????????? | | ????????????# #?????????????????? | | ????????????# @[ #?????????????????? | | ????????????#####s#####?????????????????? | | ???????????????? %= ????????????????????? | | ???????????????? ???????????????????? | | ??????????????? ??????????????????? | | ???????????????########?????????????????? | | ????????????????????????????????????????? | | ????????????????????????????????????????? | | ????????????????????????????????????????? | | ????????????????????????????????????????? | | ????????????????????????????????????????? | | ????????????????????????????????????????? | | ????????????????????????????????????????? | | ????????????????????????????????????????? | | ????????????????????????????????????????? | | ?????????????